fUSD/lending_fUSD_20250326
["ID","MTS","AMOUNT","RATE_DAILY","PERIOD"]
[356704256,1742992262094,-229.87709353,9.999e-05,2]
[356704257,1742992268420,-70.12290647,9.999e-05,2]
[356704258,1742992268444,-96.53709353,0.0001,2]
[356704259,1742992288459,-155.76,0.0001,2]
[356704260,1742992321775,350.0,0.00011,3]
[356704261,1742992321887,350.0,0.00010018,3]
[356704262,1742992321966,350.0,0.00010354,3]
[356704263,1742992337978,-250.01656051,0.0001,2]
[356704264,1742992348002,-252.8338836,0.0001,2]
[356704265,1742992360325,175.57,0.00024825,120]
[356704266,1742992386214,-150.0,9.999e-05,2]
[356704267,1742992386238,-20.02,9.999e-05,2]
[356704268,1742992388769,-170.02,9.999e-05,2]
[356704269,1742992398216,405.12174391,9.918e-05,2]
[356704270,1742992441950,350.0,0.00010999,3]
[356704271,1742992442042,350.0,0.0001,3]
[356704272,1742992442148,350.0,0.00010171,3]
[356704273,1742992445116,1043.55592064,9.99e-05,2]
[356704274,1742992462166,-7.32320942,9.999e-05,2]
[356704275,1742992462190,-178.05965058,9.999e-05,2]
[356704276,1742992464781,-83.51466569,9.999e-05,2]
[356704277,1742992464804,-159.79533431,0.0001,2]
[356704278,1742992469996,-150.24,0.0001,2]
[356704279,1742992474932,-215.50537936,0.0001,2]
[356704280,1742992479799,-192.99354554,0.0001,2]
[356704281,1742992487690,-202.672,0.0001,2]
[356704282,1742992500032,-150.0,9.999e-05,2]
[356704283,1742992503920,-150.0,9.999e-05,2]
[356704284,1742992508145,-150.0,9.999e-05,2]
[356704285,1742992561154,-52.672,9.999e-05,2]
[356704286,1742992561179,-115.808,0.0001,2]
[356704287,1742992561456,350.0,0.00010999,3]
[356704288,1742992561520,350.0,0.0001,3]
[356704289,1742992561581,350.0,0.00010171,3]
[356704290,1742992565380,-150.0,9.999e-05,2]
[356704291,1742992622000,-202.672,9.999e-05,2]
[356704292,1742992672590,202.672,9.948e-05,2]
[356704293,1742992681940,350.0,0.00011,3]
[356704294,1742992682019,350.0,0.00010009,3]
[356704295,1742992682099,350.0,0.00010371,3]
[356704296,1742992709653,548.613,9.8e-05,2]
[356704297,1742992748257,-150.0,9.999e-05,2]
[356704298,1742992748280,-124.77666258,9.999e-05,2]
[356704299,1742992802456,350.0,0.00011,3]
[356704300,1742992813972,-164.13,0.0001,2]
[356704301,1742992832832,-174.05445656,0.0001,2]
[356704302,1742992934523,-150.0,9.999e-05,2]
[356704303,1742992934547,-13.33020746,0.0001,2]
[356704304,1742992950645,-1791529.91730023,0.0001,2]
[356704305,1742992950665,-221.15633641,0.0001,2]
[356704306,1742992950685,-274.77666258,0.0001,2]
[356704307,1742992950706,-150.0,0.00010018,2]
[356704308,1742992950727,-357.43107256,0.00010036,2]
[356704309,1742992950746,-1212.06276644,0.00010136,2]
[356704310,1742992950766,-258.12366573,0.000107,2]
[356704311,1742992950787,-195.29692877,0.000109,2]
[356704312,1742992950808,-150.0,0.00010999,2]
[356704313,1742992950828,-150.0,0.00011,2]
[356704314,1742992950849,-150.0,0.00011,2]
[356704315,1742992950869,-168.09628903,0.00011973,2]
[356704316,1742992950889,-500.8936799,0.00011973,2]
[356704317,1742992950908,-161.69221938,0.00011973,2]
[356704318,1742992950928,-200.82668695,0.00011973,2]
[356704319,1742992950948,-206.20749294,0.00011973,2]
[356704320,1742992950968,-153.22609839,0.00011973,2]
[356704321,1742992950988,-500.0,0.00011973,2]
[356704322,1742992951009,-505.05643104,0.00011973,2]
[356704323,1742992951033,-500.0,0.00011973,2]
[356704324,1742992951057,-500.0,0.00011973,2]
[356704325,1742992951078,-161.5436642,0.00011973,2]
[356704326,1742992951100,-503.74,0.00011989,2]
[356704327,1742992951124,-221.15633641,0.0001199,2]
[356704328,1742992951145,-174.64927638,0.00011998,2]
[356704329,1742992951165,-29245.08315856,0.00011998,2]
[356704330,1742992951185,-1073.96028448,0.00011998,2]
[356704331,1742992951205,-579.49528334,0.00011998,2]
[356704332,1742992951228,-5087150.60836628,0.00012,2]
[356704333,1742992983177,1200.0,0.000117,4]
[356704334,1742992985280,2400.0,0.000118,4]
[356704335,1742992987386,3600.0,0.000119,4]
[356704336,1742993019490,159.75147,0.00012,6]
[356704337,1742993054071,-1559824.491115,0.00012,2]
[356704338,1742993062274,174.02166,0.00012,6]
[356704346,1742993277323,-166.23,0.00011999,2]
[356704347,1742993281720,-157.6869111,0.00013199,3]
[356704494,1742993432365,-126.59563519,0.00011999,2]
[356704495,1742993432376,-196.05231025,0.00011999,2]
[356704496,1742993432385,-126.67890973,0.00012,2]
[356704497,1742993432396,-420.7394915,0.00012,2]
[356704498,1742993432484,-321477.12982449,0.00012,2]
[356704499,1742993432584,-420.816,0.00012,2]
[356704500,1742993432641,-22503.62467986,0.00012,2]
[356704503,1742993436774,1000.0,0.00032244,120]
[356704507,1742993438230,-70277.370193,0.00012,2]
[356704508,1742993438320,-537.13002854,0.00012,2]
[356704509,1742993438394,-30632.84391438,0.00012,2]
[356704510,1742993438407,-5219.51402086,0.00012,2]
[356704511,1742993438452,-8784.9,0.00012,2]
[356704512,1742993438464,-87774.20697131,0.00012,2]
[356704514,1742993440440,-32544.52041238,0.00012,2]
[356704515,1742993440603,-5765.74704809,0.00012,2]
[356704521,1742993440996,-1375.606,0.00012,2]
[356704522,1742993441008,-2663.49075551,0.00012,2]
[356704678,1742993445261,-877.9169472,0.00012,2]
[356704680,1742993445277,-12257.3501,0.00012,2]
[356704819,1742993446639,-0.19059873,0.00012,2]
[356704822,1742993446654,-4001.23439902,0.00012,2]
[356704825,1742993446672,-469.88892333,0.00012,2]
[356704827,1742993446682,-161.3413666,0.00012539,2]
[356704829,1742993446694,-4320.11514393,0.00012639,2]
[356704832,1742993446707,-1918.36000808,0.00012739,2]
[356704834,1742993446719,-402.41,0.00012839,2]
[356704836,1742993446731,-663.77940649,0.0001307,2]
[356704839,1742993446744,-715.89,0.000131,2]
[356704841,1742993446756,-243.48,0.000131,2]
[356704843,1742993446768,-192.3130889,0.00013199,3]
[356704846,1742993446781,-150.0,0.000132,2]
[356704848,1742993446792,-1666.49191092,0.00013302,2]
[356704850,1742993446805,-735.80483973,0.000137,2]
[356704853,1742993446817,-792.65,0.00013821,2]
[356704856,1742993446828,-683.46,0.00014075,2]
[356704858,1742993446842,-200.0,0.00014341,2]
[356704860,1742993446853,-999.99,0.00014504,2]
[356704863,1742993446864,-150.99,0.00014504,2]
[356704865,1742993446877,-1699.93715968,0.00014572,2]
[356704869,1742993446901,-1429.75823956,0.00014572,2]
[356704961,1742993516042,1000.0,0.00032244,120]
[356704962,1742993549787,1000.0,0.00032244,120]
[356704963,1742993586990,1000.0,0.00032244,90]
[356704964,1742993613700,1000.0,0.00032244,120]
[356704965,1742993628592,1000.0,0.00032244,120]
[356704966,1742993644555,1000.0,0.00032244,120]
[356704967,1742993672899,1056.0,0.00032244,120]
[356704968,1742993700980,1000.0,0.00032244,120]
[356704969,1742993710929,1000.0,0.00032244,120]
[356704971,1742993740910,1000.0,0.00032244,120]
[356704972,1742993815753,1000.0,0.00032244,120]
[356704973,1742993840482,1000.0,0.00032244,120]
[356704974,1742993857777,1000.0,0.00032244,120]
[356704975,1742993879241,1000.0,0.00032244,120]
[356704976,1742993885448,1000.0,0.00032242,120]
[356704977,1742993903530,1000.0,0.00032242,120]
[356704978,1742993922910,1000.0,0.00032242,120]
[356704979,1742993939300,1000.0,0.00032242,120]
[356704980,1742993966498,1000.0,0.00032242,120]
[356704981,1742994020595,500.0,0.00032242,120]
[356704982,1742994029123,600.0,0.00032242,120]
[356704983,1742994043773,500.0,0.00032242,120]
[356704984,1742994050031,500.0,0.00032242,120]
[356704985,1742994068572,500.0,0.00032242,120]
[356704986,1742994075063,500.0,0.00032242,120]
[356704987,1742994103609,512.78,0.00032242,120]
[356704988,1742994198186,259.80765348,0.00032242,120]
[356704989,1742994222870,536.82263491,0.00032242,120]
[356705125,1742994631613,-151.39684911,0.00014592,5]
[356705126,1742994631623,-183.71,0.00015618,2]
[356705127,1742994631634,-1084.95,0.00016092,2]
[356705128,1742994631643,-166.71499377,0.000169,2]
[356705129,1742994631653,-501.0,0.00016904,2]
[356705130,1742994631662,-166.71499377,0.00016998,2]
[356705131,1742994631672,-700.0,0.00017,2]
[356705132,1742994631681,-1000.0,0.0001724,2]
[356705133,1742994631690,-150.0,0.00017351,7]
[356705134,1742994631700,-300.0,0.00017402,2]
[356705135,1742994631710,-200.0,0.00017456,2]
[356705136,1742994631719,-533.81,0.00017536,2]
[356705137,1742994631729,-1286.98,0.00017698,2]
[356705138,1742994631739,-407.45,0.00017719,2]
[356705139,1742994631748,-200.0,0.00017725,2]
[356705140,1742994631758,-23900.0,0.00017727,2]
[356705141,1742994631768,-250.0,0.00017728,2]
[356705142,1742994631778,-150.0,0.00017785,2]
[356705143,1742994631789,-600.0,0.00017808,2]
[356705144,1742994631799,-4169.67,0.00017822,2]
[356705145,1742994631808,-274.54,0.00017962,2]
[356705146,1742994631818,-250.0,0.00018198,2]
[356705147,1742994631827,-1084.95,0.00018356,2]
[356705148,1742994631837,-600.0,0.00018468,2]
[356705149,1742994631846,-157.66,0.000186,2]
[356705150,1742994631855,-150.0,0.00018728,2]
[356705151,1742994631864,-1863.23251983,0.000189,2]
[356705152,1742994631874,-7606.0691491,0.0001898,2]
[356705153,1742994631883,-204.97794464,0.00018999,2]
[356705154,1742994631893,-164916.20561129,0.00019,2]
[356705155,1742994631902,-337.51423076,0.00019,2]
[356705156,1742994631912,-1000.0,0.00019394,2]
[356705157,1742994631921,-200.0,0.00019397,2]
[356705158,1742994631930,-17477.4204169,0.000196,2]
[356705159,1742994631940,-175.57,0.0001986,2]
[356705160,1742994631949,-2939.19990966,0.0002,4]
[356705161,1742994631960,-150.0,0.00020097,2]
[356705162,1742994631970,-1084.95,0.0002062,2]
[356705163,1742994631979,-500.0,0.000208,2]
[356705164,1742994631988,-158.300834,0.000208,2]
[356705165,1742994631997,-500.0,0.000208,2]
[356705166,1742994632006,-1863.23251981,0.00021538,2]
[356705167,1742994632015,-1000.0,0.00021549,2]
[356705168,1742994632025,-239.74,0.00021917,2]
[356705169,1742994632034,-502.0,0.00022685,2]
[356705170,1742994632044,-1084.95,0.00022884,2]
[356705171,1742994632054,-50114.018089,0.000232,2]
[356705172,1742994632064,-239.74,0.00023287,2]
[356705173,1742994632073,-183.71,0.00023427,2]
[356705174,1742994632083,-1000.0,0.00023704,2]
[356705175,1742994632092,-279.73,0.00023836,2]
[356705176,1742994632101,-174.88577102,0.000239,2]
[356705177,1742994632110,-4890.12728203,0.000239,2]
[356705178,1742994632119,-51503.18568749,0.00024,2]
[356705179,1742994632129,-40569.17850556,0.00024,2]
[356705180,1742994632138,-2062.96988462,0.00024,2]
[356705181,1742994632148,-1863.23251981,0.00024175,2]
[356705182,1742994632157,-533.81,0.00024551,2]
[356705183,1742994632167,-239.74,0.00024657,2]
[356705184,1742994632176,-1000.0,0.00024658,2]
[356705185,1742994632185,-155.65,0.00024712,30]
[356705186,1742994632194,-250.0,0.00025,2]
[356705187,1742994632204,-1084.95,0.00025148,2]
[356705188,1742994632213,-1000.0,0.00025859,2]
[356705189,1742994632223,-4890.127282,0.00025989,2]
[356705190,1742994632232,-239.74,0.00026027,2]
[356705191,1742994632241,-375.43093666,0.000261,4]
[356705192,1742994632251,-493.67112628,0.00026279,2]
[356705193,1742994632260,-1000.0,0.00026279,2]
[356705194,1742994632269,-438.891,0.00026438,13]
[356705195,1742994632279,-1863.23251981,0.00026813,2]
[356705196,1742994632288,-158.17,0.00026849,2]
[356705197,1742994632297,-160.0,0.00026849,2]
[356705198,1742994632306,-300.0,0.00027,2]
[356705199,1742994632316,-239.74,0.00027397,2]
[356705200,1742994632325,-186.77,0.00027397,2]
[356705201,1742994632334,-1084.95,0.00027412,2]
[356705202,1742994632343,-1778.0,0.00028,5]
[356705203,1742994632352,-500.0,0.0002801,30]
[356705204,1742994632362,-500.0,0.0002801,30]
[356705205,1742994632371,-500.0,0.0002801,30]
[356705206,1742994632381,-536.22022596,0.0002801,30]
[356705207,1742994632390,-500.0,0.0002801,30]
[356705208,1742994632400,-522.83209017,0.0002801,30]
[356705209,1742994632409,-561.46672419,0.0002801,30]
[356705210,1742994632419,-636.2075129,0.0002801,30]
[356705211,1742994632427,-551.15797005,0.0002801,30]
[356705212,1742994632437,-4890.127282,0.00028078,2]
[356705213,1742994632447,-239.74,0.00028767,2]
[356705214,1742994632457,-48159.19541297,0.00029,2]
[356705215,1742994632467,-350.0,0.00029,2]
[356705216,1742994632476,-1863.23251981,0.00029451,2]
[356705217,1742994632485,-1084.95,0.00029675,2]
[356705218,1742994632495,-175.57,0.0002979,120]
[356705219,1742994632504,-900.0,0.000299,10]
[356705220,1742994632514,-177.77,0.0002999,2]
[356705221,1742994632524,-177.77,0.0002999,2]
[356705222,1742994632533,-178917.19968503,0.0003,2]
[356705223,1742994632546,-373.85328152,0.0003,2]
[356705224,1742994635387,-757.70112046,0.0003,2]
[356705225,1742994635398,-653.2912439,0.0003,2]
[356705226,1742994635449,-124354.91082238,0.0003,2]
[356705227,1742994635458,-239.74,0.00030136,2]
[356705228,1742994635468,-186.77,0.00030137,2]
[356705229,1742994635478,-4890.127282,0.00030167,2]
[356705230,1742994635487,-177.77,0.0003067,2]
[356705231,1742994635497,-13536.43390424,0.0003068,2]
[356705237,1742994637471,-304.28076881,0.0003068,2]
[356705238,1742994637528,-9807.22035423,0.0003068,2]
[356705239,1742994637538,-2791.0,0.00030767,2]
[356705240,1742994637548,-400.0,0.00031,2]
[356705241,1742994637560,-950.2098242,0.00031242,3]
[356705242,1742994637569,-239.74,0.00031506,2]
[356705243,1742994637579,-1210.33120425,0.00031599,7]
[356705244,1742994637591,-393.18849575,0.00031599,7]
[356705245,1742994637602,-502.33359425,0.00031935,5]
[356705246,1742994637611,-1084.95,0.00031939,2]
[356705247,1742994637621,-500.0,0.00031981,5]
[356705248,1742994637632,-244.46060774,0.00032088,2]
[356705249,1742994637644,-1618.77191207,0.00032088,2]
[356705250,1742994637654,-18579.563215,0.00032234,2]
[356705251,1742994637667,-15413.9592757,0.00032234,2]
[356705252,1742994637676,-714.15308121,0.00032244,2]
[356705253,1742994637686,-200.0,0.00032244,2]
[356705254,1742994637695,-200.0,0.00032244,2]
[356705255,1742994637706,-163.80023798,0.00032248,2]
[356705256,1742994637716,-7749.14059438,0.00032248,2]
[356705257,1742994637725,-4364.75632431,0.00032248,2]
[356705258,1742994637735,-4696.0656172,0.00032248,2]
[356705259,1742994637745,-2617.52242306,0.00032248,2]
[356705260,1742994637755,-867.54510323,0.00032248,2]
[356705261,1742994637765,-4890.127282,0.00032256,2]
[356705262,1742994637774,-383.36718631,0.0003231,2]
[356705263,1742994637784,-200.0,0.00032566,2]
[356705264,1742994637794,-200.0,0.00032566,2]
[356705265,1742994637803,-500.0,0.00032822,2]
[356705266,1742994637813,-1893.0,0.00032851,5]
[356705267,1742994637823,-177.77,0.00032856,2]
[356705268,1742994637833,-18579.563215,0.00032866,2]
[356705269,1742994637843,-15413.9592757,0.00032866,2]
[356705270,1742994637853,-239.74,0.00032876,2]
[356705271,1742994637862,-787.09,0.00032876,90]
[356705272,1742994637872,-787.09,0.00032876,90]
[356705273,1742994637881,-787.09,0.00032876,90]
[356705274,1742994637891,-787.09,0.00032876,90]
[356705275,1742994637900,-787.09,0.00032876,90]
[356705276,1742994637910,-787.09,0.00032876,90]
[356705277,1742994637920,-787.09,0.00032876,90]
[356705278,1742994637930,-787.09,0.00032876,90]
[356705280,1742994637939,-787.09,0.00032876,90]
[356705282,1742994637949,-787.09,0.00032876,90]
[356705284,1742994637959,-787.09,0.00032876,90]
[356705286,1742994637968,-787.09,0.00032876,90]
[356705287,1742994637978,-787.09,0.00032876,90]
[356705288,1742994637987,-787.09,0.00032876,90]
[356705289,1742994637997,-787.09,0.00032876,90]
[356705290,1742994638006,-787.09,0.00032876,90]
[356705291,1742994638016,-787.09,0.00032876,90]
[356705292,1742994638025,-787.09,0.00032876,90]
[356705293,1742994638035,-787.09,0.00032876,90]
[356705294,1742994638044,-787.09,0.00032876,90]
[356705295,1742994638054,-787.09,0.00032876,90]
[356705296,1742994638063,-787.09,0.00032876,90]
[356705297,1742994638073,-787.09,0.00032876,90]
[356705298,1742994638084,-787.22536588,0.00032876,90]
[356705299,1742994638093,-500.0,0.00032876,120]
[356705300,1742994638103,-500.0,0.00032876,120]
[356705301,1742994638112,-500.0,0.00032876,120]
[356705302,1742994638122,-500.0,0.00032876,120]
[356705303,1742994638131,-500.0,0.00032876,120]
[356705304,1742994638141,-193.94400938,0.00032876,120]
[356705305,1742994638151,-186.77,0.00032877,2]
[356705306,1742994638161,-270.71147617,0.00032877,2]
[356705307,1742994638170,-198.32985114,0.00032877,30]
[356705308,1742994638180,-150.0,0.00032877,30]
[356705309,1742994638189,-200.0,0.00032892,2]
[356705310,1742994638199,-200.0,0.00032892,2]
[356705311,1742994638209,-150.0,0.00032904,30]
[356705312,1742994638219,-203.57520752,0.00032932,30]
[356705313,1742994638228,-450.0,0.00033,2]
[356705314,1742994638238,-200.0,0.00033221,2]
[356705315,1742994638247,-200.0,0.00033221,2]
[356705316,1742994638257,-261.14906069,0.000333,2]
[356705317,1742994638266,-162.91207766,0.00033432,5]
[356705318,1742994638276,-15413.9592757,0.00033482,2]
[356705319,1742994638285,-18579.563215,0.00033491,2]
[356705320,1742994638294,-177.222,0.00033532,2]
[356705321,1742994638303,-200.0,0.00033553,2]
[356705322,1742994638313,-17712.38771771,0.00033769,2]
[356705323,1742994638325,-867.17549729,0.00033769,2]
[356705324,1742994638334,-177.77,0.00033769,2]
[356705325,1742994638344,-15413.9592757,0.00033779,2]
[356705326,1742994638353,-642.0,0.00033789,2]
[356705327,1742994638362,-476.095,0.00033789,2]
[356705328,1742994638371,-1282.0,0.00033789,2]
[356705329,1742994638381,-1421.0,0.00033789,2]
[356705330,1742994638390,-788.0,0.00033789,2]
[356705331,1742994638399,-1273.0,0.00033789,2]
[356705332,1742994638409,-542.0,0.00033789,2]
[356705333,1742994638419,-907.0,0.00033789,2]
[356705334,1742994638428,-1431.0,0.00033789,2]
[356705335,1742994638438,-3804.48085059,0.00033789,2]
[356705337,1742994638525,-282.51914941,0.00033789,2]
[356705339,1742994638535,-3943.0,0.00033789,2]
[356705341,1742994638544,-151.0,0.00033789,2]
[356705342,1742994638554,-1116.0,0.00033789,2]
[356705343,1742994638568,-1084.95,0.00034203,2]
[356705345,1742994638577,-239.74,0.00034246,2]
[356705346,1742994638586,-4827.2395162,0.00034301,2]
[356705348,1742994639949,-3300.0,0.00034301,2]
[356705349,1742994639963,-10452.3236988,0.00034301,2]
[356705350,1742994639972,-15413.9592757,0.00034301,2]
[356705351,1742994639982,-4890.127282,0.00034344,2]
[356705352,1742994639992,-150.0,0.00034548,10]
[356705353,1742994640002,-1863.23251981,0.00034726,2]
[356705354,1742994640012,-1107.55321047,0.00034835,30]
[356705355,1742994640022,-1800.0,0.000349,12]
[356705356,1742994640031,-174.88577102,0.000349,2]
[356705357,1742994640041,-500.0,0.00035,2]
[356705358,1742994640051,-279.73,0.00035068,2]
[356705359,1742994640061,-681.59380987,0.00035135,2]
[356705360,1742994640071,-177.77,0.00035205,2]
[356705361,1742994640080,-15401.21703632,0.00035212,2]
[356705362,1742994640093,-12.74223938,0.00035212,2]
[356705363,1742994640103,-257.55674161,0.00035214,2]
[356705364,1742994640126,-338.06224798,0.00035214,2]
[356705372,1742994642712,-2191.52758509,0.00035214,2]
[356705373,1742994643070,-1.9270765,0.00035214,2]
[356705377,1742994645102,-3019.19889002,0.00035214,2]
[356705378,1742994645122,-6530.69970821,0.00035214,2]
[356705379,1742994645134,-1831.06990304,0.00035214,2]
[356705380,1742994645146,-4409.52106255,0.00035214,2]
[356705381,1742994645156,-18579.563215,0.00035222,2]
[356705382,1742994645165,-15413.9592757,0.00035232,2]
[356705383,1742994645174,-500.0,0.00035242,30]
[356705384,1742994645184,-509.34474693,0.00035242,30]
[356705385,1742994645193,-500.0,0.00035242,30]
[356705386,1742994645203,-500.0,0.00035242,30]
[356705387,1742994645213,-500.0,0.00035242,30]
[356705388,1742994645223,-500.0,0.00035242,30]
[356705389,1742994645232,-500.0,0.00035242,30]
[356705390,1742994645242,-500.0,0.00035242,30]
[356705391,1742994645252,-500.0,0.00035242,30]
[356705392,1742994645262,-500.0,0.00035242,30]
[356705393,1742994645271,-500.0,0.00035242,30]
[356705394,1742994645281,-210.79319932,0.00035242,30]
[356705396,1742994645291,-165.15494031,0.00035242,30]
[356705397,1742994645300,-301.38199355,0.00035242,30]
[356705398,1742994645309,-161.31258547,0.00035242,30]
[356705399,1742994645319,-500.7,0.00035242,30]
[356705400,1742994645328,-162.22466047,0.00035242,30]
[356705401,1742994645338,-697.04208473,0.00035242,30]
[356705402,1742994645348,-492.99788485,0.00035242,30]
[356705403,1742994645357,-500.0,0.00035242,30]
[356705404,1742994645367,-213.5960433,0.00035242,30]
[356705405,1742994645376,-505.66820604,0.00035242,30]
[356705406,1742994645386,-500.0,0.00035242,30]
[356705407,1742994645395,-527.46951658,0.00035242,30]
[356705408,1742994645405,-810.0,0.00035242,30]
[356705409,1742994645414,-514.85374203,0.00035242,30]
[356705410,1742994645423,-500.0,0.00035242,30]
[356705411,1742994645433,-561.09348859,0.00035242,30]
[356705412,1742994645443,-999.35743152,0.00035242,30]
[356705413,1742994645452,-374.17817767,0.00035242,30]
[356705417,1742994645840,-165.30210069,0.00035242,30]
[356705419,1742994645849,-500.0,0.00035242,30]
[356705421,1742994645859,-499.89490787,0.00035242,30]
[356705423,1742994645868,-421.83658801,0.00035242,30]
[356705427,1742994645891,-84.09856293,0.00035242,30]
[356705428,1742994645901,-554.57556364,0.00035242,30]
[356705430,1742994645910,-39.78783704,0.00035242,30]
[356705433,1742994645922,-121.7554588,0.00035242,30]
[356705435,1742994645931,-517.95422634,0.00035242,30]
[356705437,1742994645940,-490.38544117,0.00035242,30]
[356705439,1742994645950,-500.0,0.00035242,30]
[356705441,1742994645959,-554.68840591,0.00035242,30]
[356705443,1742994645969,-500.0,0.00035242,30]
[356705445,1742994645978,-500.0,0.00035242,30]
[356705447,1742994645987,-209.20852416,0.00035242,30]
[356705449,1742994645996,-189.84858009,0.00035242,30]
[356705450,1742994646005,-500.0,0.00035242,30]
[356705453,1742994646015,-911.85156916,0.00035242,30]
[356705455,1742994646031,-55.42678707,0.00035242,30]
[356705457,1742994646042,-505.46645422,0.00035242,30]
[356705459,1742994646051,-589.1100877,0.00035242,30]
[356705461,1742994646063,-362.31978775,0.00035242,30]
[356705463,1742994646072,-500.0,0.00035242,30]
[356705465,1742994646082,-500.0,0.00035242,30]
[356705467,1742994646091,-160.0,0.00035321,2]
[356705469,1742994646101,-239.74,0.00035616,2]
[356705471,1742994646111,-161.78,0.00035616,2]
[356705473,1742994646120,-481.05591,0.00036088,30]
[356705476,1742994646130,-481.05591,0.00036288,30]
[356705477,1742994646140,-1500.0,0.00036298,2]
[356705479,1742994646148,-12921.42395422,0.00036363,2]
[356705482,1742994646160,-700.78568016,0.00036363,2]
[356705484,1742994646171,-348.80559152,0.00036363,2]
[356705486,1742994646182,-651.11654222,0.00036363,2]
[356705488,1742994722444,-150.0,0.00025,2]
[356705489,1742995044366,-100.0,0.00025,2]
[356705490,1742995044389,-71.414212,0.00025,2]
[356705491,1742995079107,577.14,0.00032248,120]
[356705492,1742995136891,500.0,0.00032251,120]
[356705495,1742995510455,-153.34869192,0.00012,2]
[356705914,1742995644598,700.0,0.000116,4]
[356705956,1742995646706,1500.0,0.000117,4]
[356705958,1742995648819,2200.0,0.000118,4]
[356705959,1742995650190,-158.38440415,0.0001,2]
[356705960,1742995650923,3000.0,0.000119,4]
[356705965,1742995667444,-141.67512717,0.0001,2]
[356705966,1742995667471,-16.99487283,0.00011671,2]
[356705967,1742995678364,-225.39008775,0.0001,2]
[356705968,1742995681147,350.0,0.00011,3]
[356705969,1742995681222,350.0,0.00010835,3]
[356705970,1742995684255,-368.22971684,0.0001,2]
[356705972,1742995742081,-150.98995775,9.999e-05,2]
[356705975,1742995782663,-169.144316,9.95e-05,2]
[356705977,1742995782698,-109.01004225,9.999e-05,2]
[356705979,1742995782736,-3260.65934281,0.0001,2]
[356705983,1742995783332,-150.0,0.0001,2]
[356705984,1742995802556,350.0,0.00011,3]
[356705985,1742995802754,-150.0,9.999e-05,2]
[356705986,1742995805435,-414.95257477,9.973e-05,2]
[356705999,1742995831628,-150.989958,9.922e-05,2]
[356706001,1742995831639,-85.04742523,9.973e-05,2]
[356706003,1742995831649,-500.0,9.973e-05,2]
[356706005,1742995831660,-36.10458967,9.973e-05,2]
[356706007,1742995831672,-124.31266939,9.973e-05,2]
[356706008,1742995831682,-152.4113174,9.973e-05,2]
[356706009,1742995831691,-151.51354693,9.973e-05,2]
[356706010,1742995831701,-1085.64757811,0.0001,2]
[356706011,1742995831720,-635.84523618,0.0001,2]
[356706012,1742995831734,-3525.62211806,0.0001,2]
[356706013,1742995831753,-910942.43718095,0.0001,2]
[356706014,1742995831773,-57888.38443443,0.0001,2]
[356706015,1742995831785,-1561.11161086,0.0001,2]
[356706016,1742995831813,-766.69009349,0.0001,2]
[356706017,1742995831824,-4436.73283301,0.0001,2]
[356706018,1742995831836,-294.84302077,0.0001,2]
[356706019,1742995831847,-2337.71584048,0.0001,2]
[356706020,1742995831859,-1409.18840479,0.0001,2]
[356706021,1742995831871,-2427.49534836,0.0001,2]
[356706022,1742995831887,-300.0,0.0001,2]
[356706035,1742995832461,-244.78187335,0.0001,2]
[356706037,1742995837620,-51439.45800432,0.0001,2]
[356706038,1742995837679,-1546.39082211,0.0001,2]